bitfinex-derivatives/quotes_BTCF0:USTF0_20250620
["timestamp","ask_amount","ask_price","bid_price","bid_amount"]
[1750421358221,0.0234451,105940.0,105930.0,2.34553538]
[1750421358427,0.0238451,105940.0,105930.0,2.34553538]
[1750421358618,0.0234451,105940.0,105930.0,2.34553538]
[1750421358822,0.0238451,105940.0,105930.0,2.34553538]
[1750421359227,0.01789684,105940.0,105930.0,2.47945538]
[1750421359622,0.01749684,105940.0,105930.0,2.72945538]
[1750421359822,0.01789684,105940.0,105930.0,2.72945538]
[1750421360022,0.05725673,105960.0,105950.0,0.1887495]
[1750421360228,0.05645673,105960.0,105950.0,1.84462634]
[1750421360428,0.24558843,105960.0,105950.0,1.87542634]
[1750421360819,0.1891317,105960.0,105950.0,1.87542634]
[1750421361330,0.0004,105960.0,105950.0,1.87542634]
[1750421361830,0.0024,105960.0,105950.0,1.87542634]
[1750421362032,0.0034,105960.0,105950.0,1.87542634]
[1750421362528,0.1921317,105960.0,105950.0,1.87542634]
[1750421363230,0.1921317,105960.0,105950.0,1.90652634]
[1750421364233,0.1921317,105960.0,105950.0,2.26732634]
[1750421364524,0.0034,105960.0,105950.0,2.45608633]
[1750421365119,0.003,105960.0,105950.0,2.45608633]
[1750421365330,0.0034,105960.0,105950.0,2.45608633]
[1750421365926,0.0014,105960.0,105950.0,2.45608633]
[1750421366126,0.0004,105960.0,105950.0,2.45608633]
[1750421369733,0.1891317,105960.0,105950.0,2.45608633]
[1750421370433,0.0004,105960.0,105950.0,2.45608633]
[1750421370933,0.1891317,105960.0,105950.0,2.45608633]
[1750421371130,0.1891317,105960.0,105950.0,2.26732634]
[1750421372040,0.21250089,105960.0,105950.0,2.26732634]
[1750421372229,0.02376919,105960.0,105950.0,2.26732634]
[1750421376232,0.02376919,105960.0,105950.0,2.27150041]
[1750421376840,0.02376919,105960.0,105950.0,2.51653725]
[1750421377139,0.02336919,105960.0,105950.0,2.51653725]
[1750421377341,0.02376919,105960.0,105950.0,2.51653725]
[1750421377638,0.02376919,105960.0,105950.0,2.27150041]
[1750421381033,0.02376919,105960.0,105950.0,2.51653725]
[1750421381538,0.35414273,105980.0,105950.0,2.70529724]
[1750421381539,0.11745673,105980.0,105950.0,2.70529724]
[1750421381746,0.05645673,105990.0,105980.0,0.1886961]
[1750421381933,0.31811302,106000.0,105990.0,0.1886783]
[1750421382133,0.31811302,106000.0,105990.0,0.77371514]
[1750421382134,0.12944962,106000.0,105990.0,0.77371514]
[1750421382333,0.07339289,106000.0,105990.0,1.13451514]
[1750421382642,0.0639,106000.0,105990.0,1.41045198]
[1750421382842,0.0639,106000.0,105990.0,1.44195198]
[1750421383033,0.0639,106000.0,105990.0,1.19691514]
[1750421383234,0.0705,106000.0,105990.0,1.19691514]
[1750421383437,0.0709,106000.0,105990.0,1.19691514]
[1750421383730,0.0649,106000.0,105990.0,1.19691514]
[1750421383935,0.0669,106000.0,105990.0,1.19691514]
[1750421384542,0.0669,106000.0,105990.0,1.20613178]
[1750421386344,0.0669,106000.0,105990.0,1.45116862]
[1750421386548,0.0665,106000.0,105990.0,1.45116862]
[1750421386845,0.0669,106000.0,105990.0,1.45116862]
[1750421388447,0.0669,106000.0,105990.0,1.20613178]
[1750421389047,0.2555605,106000.0,105990.0,1.45116862]
[1750421389747,0.0669,106000.0,105990.0,1.20613178]
[1750421390449,0.0669,106000.0,105990.0,1.21030585]
[1750421391654,0.2555605,106000.0,105990.0,1.21030585]
[1750421392951,0.2555605,106000.0,105990.0,1.14790585]
[1750421393454,0.27877242,106000.0,105990.0,1.14790585]
[1750421394740,0.09011192,106000.0,105990.0,1.14790585]
[1750421397054,0.09011192,106000.0,105990.0,1.11790585]
[1750421397855,0.27877242,106000.0,105990.0,1.11790585]
[1750421398452,0.09011192,106000.0,105990.0,1.11790585]
[1750421401462,0.09011192,106000.0,105990.0,0.88286901]
[1750421401657,0.09011192,106000.0,105990.0,1.12790585]
[1750421401852,0.09011192,106000.0,105990.0,1.16790585]
[1750421404559,0.27877242,106000.0,105990.0,0.80790585]
[1750421404760,0.27877242,106000.0,105990.0,1.37945178]
[1750421405861,0.2555605,106000.0,105990.0,1.37945178]
[1750421406063,0.27880799,106000.0,105990.0,1.37945178]
[1750421407164,0.2555605,106000.0,105990.0,1.37945178]
[1750421407659,0.27882193,106000.0,105990.0,1.37945178]
[1750421408763,0.09016143,106000.0,105990.0,1.37945178]
[1750421410162,0.1465971,106000.0,105990.0,1.73945178]
[1750421410362,0.09016143,106000.0,105990.0,1.77275178]
[1750421410966,0.1465971,106000.0,105990.0,1.77275178]
[1750421413358,0.1465971,106000.0,105990.0,1.80285178]
[1750421417861,0.1465971,106000.0,105990.0,1.80702585]
[1750421419067,0.1139971,106000.0,105990.0,2.04750524]
[1750421419870,0.0830971,106000.0,105990.0,2.05167931]
[1750421420971,0.0830971,106000.0,105990.0,1.69167931]
[1750421421273,0.0830971,106000.0,105990.0,2.01167931]
[1750421422670,0.0830971,106000.0,105990.0,1.76683416]
[1750421423072,0.0830971,106000.0,105990.0,1.76266009]
[1750421423872,0.0830971,106000.0,105990.0,0.86694009]
[1750421424073,0.1456971,106000.0,105990.0,1.78258009]
[1750421424371,0.39054225,106000.0,105990.0,1.78258009]
[1750421424580,0.57920265,106000.0,105990.0,1.37918009]
[1750421425974,0.57920265,106000.0,105990.0,0.80354009]
[1750421426174,0.8240478,106000.0,105990.0,0.79432345]
[1750421426373,0.76761213,106000.0,105990.0,1.00916345]
[1750421426569,0.52176698,106000.0,105990.0,0.43352345]
[1750421426776,0.60104262,106000.0,105990.0,0.7643183]
[1750421427075,0.60112086,106000.0,105990.0,0.7643183]
[1750421427376,0.52584522,106000.0,105990.0,0.7643183]
[1750421429370,0.28092183,106000.0,105990.0,0.7643183]
[1750421429577,0.28092183,106000.0,105990.0,0.77377085]
[1750421429778,0.28092183,106000.0,105990.0,1.01869424]
[1750421430077,0.28052183,106000.0,105990.0,1.02286831]
[1750421430265,0.28092183,106000.0,105990.0,1.02286831]
[1750421430767,0.35619747,106000.0,105990.0,1.02286831]
[1750421431171,0.35619747,106000.0,105990.0,1.38366831]
[1750421433186,0.16753707,106000.0,105990.0,1.38366831]
[1750421433378,0.35619727,106000.0,105990.0,1.13874492]
[1750421433576,0.35619727,106000.0,105990.0,1.38366831]
[1750421433766,0.35619727,106000.0,105990.0,1.38362831]
[1750421433969,0.28092163,106000.0,105990.0,1.37417576]
[1750421434478,0.28092163,106000.0,105990.0,1.38362831]
[1750421434680,0.28092163,106000.0,105990.0,1.37417576]
[1750421435079,0.35619727,106000.0,105990.0,1.37417576]
[1750421435268,0.35619727,106000.0,105990.0,1.37000169]
[1750421436482,0.35619727,106000.0,105990.0,1.1250783]
[1750421436683,0.35619727,106000.0,105990.0,1.37000169]
[1750421438886,0.35619727,106000.0,105990.0,1.3794207]
[1750421440484,0.35619727,106000.0,105990.0,1.13449731]
[1750421440789,0.35619727,106000.0,105990.0,1.3794207]
[1750421440983,0.33749032,106000.0,105990.0,1.3794207]
[1750421442384,0.33749032,106000.0,105990.0,1.38359477]
[1750421444390,0.33749032,106000.0,105990.0,1.3794207]
[1750421447092,0.58238875,106000.0,105990.0,1.37939574]
[1750421448191,0.52582006,106000.0,105990.0,1.37939574]
[1750421448692,0.52582006,106000.0,105990.0,1.36997673]
[1750421452198,0.6010957,106000.0,105990.0,1.36997673]
[1750421452699,0.6010957,106000.0,105990.0,1.36077383]
[1750421456300,0.52582006,106000.0,105990.0,0.78517383]
[1750421456501,0.98749783,106000.0,105990.0,0.7641576]
[1750421458000,0.98749783,106000.0,105990.0,1.00905603]
[1750421458305,0.7425994,106000.0,105990.0,1.00905603]
[1750421459909,0.7425994,106000.0,105990.0,0.43357603]
[1750421460108,0.7425994,106000.0,105990.0,1.00901603]
[1750421465115,0.66732376,106000.0,105990.0,1.00901603]
[1750421465718,0.66732376,106000.0,105990.0,1.0131901]
[1750421466318,0.7425994,106000.0,105990.0,1.0131901]
[1750421466917,0.7425994,106000.0,105990.0,1.00901603]
[1750421471724,0.49770097,106000.0,105990.0,1.00901603]
[1750421472028,0.7425994,106000.0,105990.0,0.76829167]
[1750421472327,0.7425994,106000.0,105990.0,1.0131901]
[1750421473928,0.7425994,106000.0,105990.0,1.00901603]
[1750421475328,0.49770097,106000.0,105990.0,1.00901603]
[1750421475527,0.7425994,106000.0,105990.0,1.00901603]
[1750421477328,0.7425994,106000.0,105990.0,1.07401603]
[1750421479533,0.7425994,106000.0,105990.0,1.43481603]
[1750421481028,0.66732376,106000.0,105990.0,1.42561245]
[1750421481231,0.7427553,106000.0,105990.0,1.42561245]
[1750421482225,0.66732376,106000.0,105990.0,1.06481245]
[1750421482728,0.64406233,106000.0,105990.0,1.06481245]
[1750421482926,0.66738678,106000.0,105990.0,1.06481245]
[1750421483519,0.66738678,106000.0,105990.0,1.42561245]
[1750421484026,0.66738678,106000.0,105990.0,1.06481245]
[1750421484724,0.66738678,106000.0,105990.0,1.42561245]
[1750421485031,0.66738678,106000.0,105990.0,1.42978652]
[1750421486235,0.76148133,106000.0,105990.0,1.42561245]
[1750421486826,0.76148133,106000.0,105990.0,1.06481245]
[1750421487228,0.1886777,105990.0,105980.0,0.6910019]
[1750421487530,0.52210058,105990.0,105980.0,1.1246955]
[1750421487735,0.52210058,105990.0,105980.0,0.1886955]
[1750421487736,0.61619513,105990.0,105980.0,0.1886955]
[1750421488032,0.61619513,105990.0,105980.0,0.7638955]
[1750421488423,0.61719513,105990.0,105980.0,1.00879393]
[1750421488736,0.61719513,105990.0,105980.0,0.7638955]
[1750421489035,0.61719513,105990.0,105980.0,0.5752]
[1750421489628,0.61919513,105990.0,105980.0,0.5752]
[1750421490030,0.97999513,105990.0,105980.0,0.5752]
[1750421490836,0.1886955,105980.0,105970.0,0.96998236]
[1750421491037,0.53235618,105980.0,105970.0,0.94364937]
[1750421491442,0.45691838,105980.0,105970.0,1.51884937]
[1750421492041,0.45691838,105980.0,105970.0,0.38419524]
[1750421492240,1.05375304,105980.0,105970.0,0.35259524]
[1750421492433,0.84015461,105980.0,105970.0,0.3403219]
[1750421492634,0.35035775,105980.0,105970.0,0.3403219]
[1750421493034,0.84015461,105980.0,105970.0,0.3403219]
[1750421493433,0.35035775,105980.0,105970.0,0.3413219]
[1750421493738,0.84015461,105980.0,105970.0,0.3413219]
[1750421494733,0.84615461,105980.0,105970.0,0.3403219]
[1750421495431,0.84615461,105980.0,105970.0,0.5290349]
[1750421495832,0.85315461,105980.0,105970.0,0.5290349]
[1750421496433,0.85315461,105980.0,105970.0,1.1117949]
[1750421498436,0.77771681,105980.0,105970.0,1.1117949]
[1750421500441,0.77771681,105980.0,105970.0,1.1114349]
[1750421500637,0.28791995,105980.0,105970.0,1.1114349]
[1750421501137,0.28791995,105980.0,105970.0,1.35633333]
[1750421501345,0.77771681,105980.0,105970.0,1.1114349]
[1750421502739,0.75439236,105980.0,105970.0,1.1114349]
[1750421504141,0.50949393,105980.0,105970.0,1.1114349]
[1750421504346,0.75439236,105980.0,105970.0,1.1114349]
[1750421505646,0.75439236,105980.0,105970.0,1.1129549]
[1750421506447,0.75439236,105980.0,105970.0,1.1140349]
[1750421506648,0.75439236,105980.0,105970.0,0.5290349]
[1750421506847,0.82983016,105980.0,105970.0,0.5290349]
[1750421507850,0.82983016,105980.0,105970.0,0.3403219]
[1750421508047,0.82983016,105980.0,105970.0,0.5290349]
[1750421508349,0.82983016,105980.0,105970.0,0.51982951]
[1750421509251,0.3400333,105980.0,105970.0,0.76472794]
[1750421509440,0.2016955,105980.0,105970.0,1.36962637]
[1750421509641,0.06986246,105980.0,105970.0,1.43412637]
[1750421509844,0.2020952,105980.0,105970.0,1.43412637]
[1750421510151,0.2016952,105980.0,105970.0,1.43412637]
[1750421510349,0.0134,105980.0,105970.0,1.43412637]
[1750421510851,0.0134,105980.0,105970.0,1.18922556]
[1750421511549,0.2020952,105980.0,105970.0,1.19339963]
[1750421512051,0.0134,105980.0,105970.0,1.19339963]
[1750421512444,0.0134,105980.0,105970.0,1.63211963]
[1750421512650,0.013,105980.0,105970.0,1.63211963]
[1750421512852,0.0134,105980.0,105970.0,1.63211963]
[1750421513051,0.013,105980.0,105970.0,1.87701568]
[1750421513244,0.0134,105980.0,105970.0,1.87701568]
[1750421516555,0.0134,105980.0,105970.0,2.17171568]
[1750421517056,0.0008,106000.0,105990.0,0.1886774]
[1750421517356,0.0008,106000.0,105990.0,1.84180855]
[1750421517556,0.2839719,106010.0,106000.0,0.1886596]
[1750421517751,0.2847719,106010.0,106000.0,1.21935565]
[1750421518654,0.2376102,106010.0,106000.0,1.21935565]
[1750421519357,0.2396102,106010.0,106000.0,1.21935565]
[1750421519756,0.2388102,106010.0,106000.0,1.21935565]
[1750421519951,0.2392102,106010.0,106000.0,1.21935565]
[1750421521554,0.2392102,106010.0,106000.0,1.22887092]
[1750421524361,0.2392102,106010.0,106000.0,0.98397487]
[1750421524563,0.2392102,106010.0,106000.0,0.86887092]
[1750421524764,0.2392102,106010.0,106000.0,1.20887092]
[1750421525663,0.2392102,106010.0,106000.0,1.21304499]
[1750421531266,0.0034,106010.0,106000.0,1.21304499]
[1750421531658,0.003,106010.0,106000.0,1.21304499]
[1750421531958,0.003,106010.0,106000.0,1.40171699]
[1750421532166,0.003,106010.0,106000.0,1.94131304]
[1750421532462,0.0034,106010.0,106000.0,1.69641699]
[1750421532763,0.0255455,106010.0,106000.0,1.69641699]
[1750421533066,0.0251455,106010.0,106000.0,1.69641699]
[1750421533370,0.0255455,106010.0,106000.0,1.69641699]
[1750421534664,0.0034,106010.0,106000.0,1.69641699]
[1750421537766,0.02559096,106010.0,106000.0,1.69641699]
[1750421540564,0.02559096,106010.0,106000.0,1.40171699]
[1750421541068,0.02559096,106010.0,106000.0,1.20887092]
[1750421541269,0.08789096,106010.0,106000.0,1.14387092]
[1750421544171,0.08789096,106010.0,106000.0,1.13467046]
[1750421544473,0.08789096,106010.0,106000.0,1.12967046]
[1750421545473,0.08789096,106010.0,106000.0,1.19387046]
[1750421547676,0.02559096,106010.0,106000.0,1.19387046]
[1750421548169,0.02559096,106010.0,106000.0,1.19804453]
[1750421548382,0.02559096,106010.0,106000.0,1.44294058]
[1750421548581,0.02519096,106010.0,106000.0,1.63161258]
[1750421548876,0.02559096,106010.0,106000.0,1.63161258]
[1750421549073,0.02559096,106010.0,106000.0,1.44294058]
[1750421549776,0.02559096,106010.0,106000.0,1.19804453]
[1750421550370,0.02559096,106010.0,106000.0,1.19304453]
[1750421550680,0.02559096,106010.0,106000.0,1.43794058]
[1750421551180,0.02559096,106010.0,106000.0,1.19304453]
[1750421551877,0.02559096,106010.0,106000.0,1.48774453]
[1750421553772,0.02559096,106010.0,106000.0,1.73264058]
[1750421557078,0.02559096,106010.0,106000.0,1.48774453]
[1750421557878,0.02559096,106010.0,106000.0,1.19304453]
[1750421559572,0.02559096,106010.0,106000.0,1.43794058]
[1750421561078,0.02559096,106010.0,106000.0,1.45500358]
[1750421561279,0.02559096,106010.0,106000.0,1.81580358]
[1750421561679,0.02559096,106010.0,106000.0,1.57090753]
[1750421563280,6e-08,106010.0,106000.0,1.81580358]
[1750421563481,0.05726246,106030.0,106020.0,0.1886242]
[1750421563682,0.0649,106030.0,106020.0,1.78702599]
[1750421564382,0.0653,106030.0,106020.0,1.78702599]
[1750421564575,0.12176246,106030.0,106020.0,1.78702599]
[1750421564776,0.12576246,106030.0,106020.0,1.7868402]
[1750421567182,0.12776246,106030.0,106020.0,1.7868402]
[1750421568983,0.12776246,106030.0,106020.0,1.54194415]
[1750421569182,0.12776246,106030.0,106020.0,1.7868402]
[1750421571582,0.12776246,106030.0,106020.0,1.79101427]
[1750421573585,0.12776246,106030.0,106020.0,1.7868402]
[1750421574485,0.12776246,106030.0,106020.0,1.79101427]
[1750421574683,0.0713,106030.0,106020.0,1.79101427]
[1750421575383,0.0935118,106030.0,106020.0,1.79101427]
[1750421578793,0.0935118,106030.0,106020.0,1.79057297]
[1750421579592,0.0935118,106030.0,106020.0,1.7863989]
[1750421580691,0.0935118,106030.0,106020.0,1.79057297]
[1750421581491,0.0935118,106030.0,106020.0,2.03524837]
[1750421581695,0.0605118,106030.0,106020.0,2.09824837]
[1750421581992,0.0286118,106030.0,106020.0,2.09824837]
[1750421583695,0.0282118,106030.0,106020.0,2.09824837]
[1750421583895,0.0286118,106030.0,106020.0,2.09824837]
[1750421584895,0.0286118,106030.0,106020.0,1.85347851]
[1750421592909,0.0286118,106030.0,106020.0,1.84930444]
[1750421594415,0.0246118,106030.0,106020.0,1.84930444]
[1750421594717,0.0226118,106030.0,106020.0,1.84930444]
[1750421597921,0.0226118,106030.0,106020.0,1.85347851]
[1750421600022,0.0226118,106030.0,106020.0,1.84930444]
[1750421601818,0.0226118,106030.0,106020.0,1.54167627]
[1750421602123,0.51734637,106030.0,106020.0,0.9270481]
[1750421602322,0.57380883,106030.0,106020.0,0.0168239]
[1750421602517,0.70597837,106030.0,106020.0,0.0168239]
[1750421602721,0.1886242,106020.0,106010.0,0.6437426]
[1750421603020,0.34432282,106020.0,106010.0,0.6437426]
[1750421604017,0.34432282,106020.0,106010.0,0.88837077]
[1750421604322,0.34432282,106020.0,106010.0,0.6437426]
[1750421604518,0.34432282,106020.0,106010.0,0.88837077]
[1750421605019,0.34432282,106020.0,106010.0,0.6437426]
[1750421607125,0.34432282,106020.0,106010.0,0.9937426]
[1750421607326,0.34432282,106020.0,106010.0,0.6437426]
[1750421608128,0.34432282,106020.0,106010.0,0.88837077]
[1750421612424,0.34432282,106020.0,106010.0,1.23837077]
[1750421612425,0.15569862,106020.0,106010.0,1.23837077]
[1750421612624,0.34432282,106020.0,106010.0,1.23837077]
[1750421613124,0.34432282,106020.0,106010.0,1.24254484]
[1750421614130,0.34432282,106020.0,106010.0,1.23837077]
[1750421614522,0.28776245,106020.0,106010.0,0.6437426]
[1750421614733,0.28776245,106020.0,106010.0,1.24837077]
[1750421616733,0.28776245,106020.0,106010.0,0.9637426]
[1750421616932,0.28776245,106020.0,106010.0,1.20837077]
[1750421624838,0.28776245,106020.0,106010.0,1.20852076]
[1750421625238,0.34432282,106020.0,106010.0,1.20852076]
[1750421626337,0.58910098,106020.0,106010.0,1.20852076]
[1750421627340,0.58910098,106020.0,106010.0,0.88852076]
[1750421627639,0.58910098,106020.0,106010.0,1.24852076]
[1750421628440,0.58910098,106020.0,106010.0,0.88852076]
[1750421628744,0.58910098,106020.0,106010.0,1.22852076]
[1750421629844,0.58910098,106020.0,106010.0,1.21931968]
[1750421632040,0.53254061,106020.0,106010.0,1.21931968]
[1750421633046,0.60797841,106020.0,106010.0,1.21931968]
[1750421634442,0.53254061,106020.0,106010.0,1.21931968]
[1750421635449,0.53254061,106020.0,106010.0,1.25251968]
[1750421635650,0.53254061,106020.0,106010.0,1.28391968]
[1750421635949,0.53254061,106020.0,106010.0,0.94391968]
[1750421636147,0.53254061,106020.0,106010.0,1.29391968]
[1750421638148,0.53254061,106020.0,106010.0,0.93311968]
[1750421638350,0.53254061,106020.0,106010.0,1.29391968]
[1750421638549,0.53254061,106020.0,106010.0,0.93311968]
[1750421638748,0.53254061,106020.0,106010.0,1.29391968]
[1750421640354,0.53254061,106020.0,106010.0,0.69914152]
[1750421640850,0.53254061,106020.0,106010.0,0.94391968]
[1750421642149,0.53254061,106020.0,106010.0,1.28391968]
[1750421644754,0.53254061,106020.0,106010.0,1.25391968]
[1750421646254,0.53254061,106020.0,106010.0,0.94391968]
[1750421648357,0.53254061,106020.0,106010.0,1.28391968]
[1750421648958,0.53254061,106020.0,106010.0,0.69914152]
[1750421649156,0.53254061,106020.0,106010.0,1.26391968]
[1750421653168,0.53254061,106020.0,106010.0,0.89676238]
[1750421653362,0.53254061,106020.0,106010.0,0.53596238]
[1750421653560,0.60797841,106020.0,106010.0,0.53596238]
[1750421655057,0.60797841,106020.0,106010.0,0.89676238]
[1750421655566,0.60797841,106020.0,106010.0,0.88756095]
[1750421656266,0.36320025,106020.0,106010.0,0.88756095]
[1750421656669,0.36320025,106020.0,106010.0,1.22756095]
[1750421657669,0.60797841,106020.0,106010.0,1.22756095]
[1750421657868,0.60797841,106020.0,106010.0,1.23173502]
[1750421659367,0.60797841,106020.0,106010.0,0.28615686]
[1750421659670,0.60797841,106020.0,106010.0,1.22173502]
[1750421660370,0.60797841,106020.0,106010.0,1.19298103]
[1750421660566,0.60797841,106020.0,106010.0,1.00435223]
[1750421660766,0.60797841,106020.0,106010.0,0.67017816]
[1750421660974,0.60797841,106020.0,106010.0,0.63697816]
[1750421661163,0.61097841,106020.0,106010.0,0.79422016]
[1750421666678,0.61097841,106020.0,106010.0,0.78501872]
[1750421666976,0.61097841,106020.0,106010.0,0.79422016]
[1750421668080,0.61097841,106020.0,106010.0,0.85702016]
[1750421669679,0.85575657,106020.0,106010.0,0.3608]
[1750421669981,0.188642,106010.0,106000.0,0.1886564]
[1750421670183,0.5930151,106010.0,106000.0,0.43305936]
[1750421671182,0.5930151,106010.0,106000.0,0.49545936]
[1750421671479,0.51753196,106010.0,106000.0,0.83545936]
[1750421671675,0.51753196,106010.0,106000.0,0.49545936]
[1750421673582,0.2727538,106010.0,106000.0,0.49545936]
[1750421673776,0.51753196,106010.0,106000.0,0.49545936]
[1750421674279,0.51753196,106010.0,106000.0,0.74023752]
[1750421675178,0.51753196,106010.0,106000.0,1.11023752]
[1750421675380,0.48723196,106010.0,106000.0,0.86545936]
[1750421675771,0.48723196,106010.0,106000.0,1.11023752]
[1750421675975,0.54378317,106010.0,106000.0,1.47103752]
[1750421676179,0.07876301,106010.0,106000.0,1.47103752]
[1750421676375,0.05655121,106010.0,106000.0,1.47103752]
[1750421676572,0.07916301,106010.0,106000.0,1.47103752]
[1750421676877,0.0226118,106010.0,106000.0,1.22621793]
[1750421677083,0.0222118,106010.0,106000.0,1.230392]
[1750421677282,0.07277766,106020.0,106010.0,0.188642]
[1750421677485,0.09463805,106020.0,106010.0,1.21293081]
[1750421677982,0.28326225,106020.0,106010.0,1.21293081]
[1750421678677,0.28326225,106020.0,106010.0,1.21493081]
[1750421678883,0.28326225,106020.0,106010.0,1.21693081]
[1750421679782,0.09463805,106020.0,106010.0,1.21693081]
[1750421682386,0.03808684,106020.0,106010.0,1.21693081]
[1750421682586,0.03728684,106020.0,106010.0,1.21693081]
[1750421682773,0.03768684,106020.0,106010.0,1.21693081]
[1750421684693,0.22631104,106020.0,106010.0,1.21693081]
[1750421685389,0.22631104,106020.0,106010.0,0.84693081]
[1750421685586,0.22631104,106020.0,106010.0,1.18693081]
[1750421685995,0.21125979,106020.0,106010.0,1.16977873]
[1750421686784,0.21125979,106020.0,106010.0,1.16777873]
[1750421687290,0.02263559,106020.0,106010.0,1.16777873]
[1750421687490,0.21125969,106020.0,106010.0,1.16777873]
[1750421688394,0.21125969,106020.0,106010.0,1.16577873]
[1750421688594,0.02263559,106020.0,106010.0,1.16577873]
[1750421688985,0.21125969,106020.0,106010.0,1.16577873]
[1750421689689,0.21125969,106020.0,106010.0,1.52657873]
[1750421691195,0.21125969,106020.0,106010.0,1.18657873]
[1750421691395,0.21125969,106020.0,106010.0,1.52657873]
[1750421695500,0.21125969,106020.0,106010.0,1.5307528]
[1750421698604,0.2678109,106020.0,106010.0,1.5307528]
[1750421698793,0.0791868,106020.0,106010.0,1.5307528]
[1750421698999,0.02263559,106020.0,106010.0,1.5307528]
[1750421700305,0.02263559,106020.0,106010.0,1.28601607]
[1750421700607,0.02263559,106020.0,106010.0,1.5327528]
[1750421701006,0.02263559,106020.0,106010.0,1.5347528]
[1750421703501,0.02263559,106020.0,106010.0,1.77948953]
[1750421703708,0.02223559,106020.0,106010.0,1.77948953]
[1750421703906,0.02263559,106020.0,106010.0,1.77948953]
[1750421704208,0.02223559,106020.0,106010.0,1.77948953]
[1750421704506,0.03759765,106030.0,106020.0,0.1886242]
[1750421704808,0.03799765,106030.0,106020.0,1.43999766]
[1750421709610,0.02263981,106030.0,106020.0,1.4570224]
[1750421717629,0.02263981,106030.0,106020.0,1.4882224]
[1750421718723,0.02263981,106030.0,106020.0,1.24348567]
[1750421719027,0.21124621,106030.0,106020.0,1.24348567]
[1750421719229,0.47161336,106030.0,106020.0,0.56644894]
[1750421719421,0.59056457,106030.0,106020.0,0.56644894]
[1750421721028,0.59256457,106030.0,106020.0,0.56644894]
[1750421721231,0.59356457,106030.0,106020.0,0.56644894]
[1750421722330,0.34882784,106030.0,106020.0,0.56644894]
[1750421723233,0.34882784,106030.0,106020.0,0.20564894]
[1750421723825,0.34882784,106030.0,106020.0,0.56644894]
[1750421724025,0.34882784,106030.0,106020.0,0.55564894]
[1750421724235,0.34882784,106030.0,106020.0,1.16118567]
[1750421725233,0.27003682,106030.0,106020.0,1.16118567]
[1750421726038,0.34879361,106030.0,106020.0,1.16118567]
[1750421726540,0.34879361,106030.0,106020.0,0.81118567]
[1750421727641,0.34879361,106030.0,106020.0,1.13118567]
[1750421729934,0.34879361,106030.0,106020.0,0.81118567]
[1750421730337,0.34879361,106030.0,106020.0,1.18118567]
[1750421730945,0.34879361,106030.0,106020.0,0.81118567]
[1750421731144,0.34879361,106030.0,106020.0,1.16118567]
[1750421732737,0.34879361,106030.0,106020.0,0.81118567]
[1750421733248,0.34879361,106030.0,106020.0,1.19118567]
[1750421733946,0.34879361,106030.0,106020.0,0.81118567]
[1750421742748,0.34879361,106030.0,106020.0,0.56644894]
[1750421742951,0.5935527,106030.0,106020.0,0.81120803]
[1750421744754,0.53705652,106030.0,106020.0,0.81120803]
[1750421744954,0.29229743,106030.0,106020.0,0.81120803]
[1750421745151,0.53705652,106030.0,106020.0,0.81120803]
[1750421746356,0.61238477,106030.0,106020.0,0.81120803]
[1750421746552,0.53705652,106030.0,106020.0,0.81120803]
[1750421747449,0.61238477,106030.0,106020.0,0.81120803]
[1750421748451,0.61209265,106030.0,106020.0,0.79418329]
[1750421749457,0.36733356,106030.0,106020.0,0.79418329]
[1750421749658,0.61209265,106030.0,106020.0,0.85598329]
[1750421750058,0.61209265,106030.0,106020.0,1.10074238]
[1750421750752,0.58983204,106030.0,106020.0,1.10074238]
[1750421750955,0.51450379,106030.0,106020.0,1.10074238]
[1750421751358,0.51450379,106030.0,106020.0,0.6112242]
[1750421751658,0.612265,106030.0,106020.0,1.10074238]
[1750421751956,0.5969267,106030.0,106020.0,1.10074238]
[1750421752150,0.61264416,106030.0,106020.0,1.10074238]
[1750421754668,0.53715827,106030.0,106020.0,1.10074238]
[1750421755859,0.53715827,106030.0,106020.0,0.85598329]
[1750421757062,0.29239918,106030.0,106020.0,0.85598329]
[1750421757263,0.53715827,106030.0,106020.0,0.85598329]
[1750421758664,0.53715827,106030.0,106020.0,1.10074238]
[1750421760656,0.53515827,106030.0,106020.0,1.10074238]
[1750421761052,0.61064416,106030.0,106020.0,1.10074238]
[1750421761661,0.61064416,106030.0,106020.0,0.85598329]
[1750421762458,0.60964416,106030.0,106020.0,0.85598329]
[1750421763565,0.36488507,106030.0,106020.0,0.85598329]
[1750421763765,0.60964416,106030.0,106020.0,1.10074238]
[1750421771572,0.60964416,106030.0,106020.0,1.41074238]
[1750421771763,0.60964416,106030.0,106020.0,1.10074238]
[1750421772070,0.60964416,106030.0,106020.0,1.09994238]
[1750421772271,0.60964416,106030.0,106020.0,1.46074238]
[1750421772471,0.60964416,106030.0,106020.0,0.9712242]
[1750421772664,0.60964416,106030.0,106020.0,1.46074238]
[1750421772865,0.60964416,106030.0,106020.0,1.10074238]
[1750421774879,0.36488507,106030.0,106020.0,0.85598329]
[1750421775372,0.60964416,106030.0,106020.0,0.85598329]
[1750421775862,0.60964416,106030.0,106020.0,1.10074238]
[1750421779676,0.60964416,106030.0,106020.0,1.09154189]
[1750421784085,0.30248497,106030.0,106020.0,1.44154189]
[1750421784585,0.30208497,106030.0,106020.0,1.44154189]
[1750421784976,0.30248497,106030.0,106020.0,1.44154189]
[1750421785684,0.30248497,106030.0,106020.0,1.44354189]
[1750421786784,0.30248497,106030.0,106020.0,1.44554189]
[1750421788089,0.30248497,106030.0,106020.0,0.60602371]
[1750421788289,0.30248497,106030.0,106020.0,1.43554189]
[1750421789386,0.30248497,106030.0,106020.0,1.42554189]
[1750421790786,0.54724406,106030.0,106020.0,1.42554189]
[1750421790987,0.54724406,106030.0,106020.0,1.09354189]
[1750421792392,0.54724406,106030.0,106020.0,1.09154189]
[1750421793284,0.54724406,106030.0,106020.0,0.60202371]
[1750421793483,0.61274406,106030.0,106020.0,0.8467828]
[1750421793686,0.61274406,106030.0,106020.0,0.7849828]
[1750421798394,0.61274406,106030.0,106020.0,0.17942371]
[1750421799591,0.61274406,106030.0,106020.0,0.4241828]
[1750421799791,0.61274406,106030.0,106020.0,0.17942371]
[1750421799792,0.6127425,106030.0,106020.0,0.17942371]
[1750421799990,0.6137425,106030.0,106020.0,0.17942371]
[1750421801988,0.6157425,106030.0,106020.0,0.17942371]
[1750421802703,0.1886241,106020.0,106010.0,0.7515987]
[1750421802889,0.5937444,106020.0,106010.0,0.3300987]
[1750421803090,0.83850349,106020.0,106010.0,0.2357826]
[1750421803284,1.19930349,106020.0,106010.0,0.1886261]
[1750421803490,1.21456466,106020.0,106010.0,0.1886261]
[1750421803788,1.23343614,106020.0,106010.0,0.1886261]
[1750421803986,0.188642,106010.0,106000.0,0.2830715]
[1750421804193,0.59373359,106010.0,106000.0,0.2355326]
[1750421805406,0.52746439,106010.0,106000.0,0.2355326]
[1750421805894,0.60292157,106010.0,106000.0,0.2355326]
[1750421806093,0.60392157,106010.0,106000.0,0.2355326]
[1750421806898,0.60392157,106010.0,106000.0,0.48029169]
[1750421807096,0.60592157,106010.0,106000.0,0.48029169]